[Event "*** Titled Tuesday Blitz"]
[Site "Chess.com"]
[Date "2020.05.19"]
[Round "9"]
[White "WonderChampion"]
[Black "larisakalinina"]
[Result "1-0"]
[WhiteElo "1931"]
[BlackElo "2004"]
[TimeControl "180+1"]
[EndTime "13:47:13 PDT"]
[Termination "WonderChampion won on time"]

1. e4 {[%clk 0:03:00.9]} 1... c5 {[%clk 0:02:59.2]} 2. Nf3 {[%clk 0:03:00.3]}
2... Nc6 {[%clk 0:02:58.7]} 3. Bb5 {[%clk 0:02:59.4]} 3... g6 {[%clk 0:02:57.7]}
4. O-O {[%clk 0:02:56.1]} 4... Bg7 {[%clk 0:02:57.1]} 5. c3 {[%clk 0:02:51.5]}
5... e5 {[%clk 0:02:56]} 6. d3 {[%clk 0:02:46.2]} 6... Nge7 {[%clk 0:02:55]} 7.
Ba4 {[%clk 0:02:44]} 7... O-O {[%clk 0:02:54.5]} 8. Bc2 {[%clk 0:02:44.2]} 8...
d5 {[%clk 0:02:52.9]} 9. exd5 {[%clk 0:02:43.4]} 9... Qxd5 {[%clk 0:02:50.8]}
10. Re1 {[%clk 0:02:43.4]} 10... Bg4 {[%clk 0:02:49.3]} 11. Nbd2 {[%clk
0:02:39.8]} 11... Rad8 {[%clk 0:02:38.9]} 12. h3 {[%clk 0:02:37]} 12... Bc8
{[%clk 0:02:32.3]} 13. Ne4 {[%clk 0:02:33.8]} 13... f5 {[%clk 0:02:24.3]} 14.
Bb3 {[%clk 0:02:27.9]} 14... c4 {[%clk 0:02:17.9]} 15. Bxc4 {[%clk 0:02:24.1]}
15... Qxc4 {[%clk 0:02:18.1]} 16. dxc4 {[%clk 0:02:24]} 16... Rxd1 {[%clk
0:02:18.5]} 17. Rxd1 {[%clk 0:02:22.5]} 17... fxe4 {[%clk 0:02:18.8]} 18. Nd2
{[%clk 0:02:18.8]} 18... Rd8 {[%clk 0:01:59.9]} 19. b3 {[%clk 0:02:13.9]} 19...
e3 {[%clk 0:01:42.3]} 20. fxe3 {[%clk 0:02:12.3]} 20... Nf5 {[%clk 0:01:41.3]}
21. Kf2 {[%clk 0:02:10.8]} 21... e4 {[%clk 0:01:34.5]} 22. Bb2 {[%clk
0:02:07.1]} 22... Ne5 {[%clk 0:01:31.3]} 23. Nxe4 {[%clk 0:01:58.3]} 23... Nd3+
{[%clk 0:01:12.9]} 24. Ke2 {[%clk 0:01:55.7]} 24... Re8 {[%clk 0:00:30.9]} 25.
Kxd3 {[%clk 0:01:52.1]} 25... Bd7 {[%clk 0:00:18.2]} 26. Re1 {[%clk 0:01:43]}
26... Bc6 {[%clk 0:00:18.2]} 27. Nf2 {[%clk 0:01:33.6]} 27... Bxg2 {[%clk
0:00:18.2]} 28. Rad1 {[%clk 0:01:29.5]} 28... Bc6 {[%clk 0:00:17.7]} 29. e4
{[%clk 0:01:27.2]} 29... Nd6 {[%clk 0:00:13.7]} 30. Ke3 {[%clk 0:01:24.8]} 30...
Nxe4 {[%clk 0:00:12.7]} 31. Nxe4 {[%clk 0:01:24.3]} 31... Rxe4+ {[%clk
0:00:13.6]} 32. Kf2 {[%clk 0:01:24]} 32... Rxe1 {[%clk 0:00:12.1]} 33. Rxe1
{[%clk 0:01:22]} 33... Kf7 {[%clk 0:00:12.6]} 34. Ke3 {[%clk 0:01:19.3]} 34...
Bh6+ {[%clk 0:00:11.1]} 35. Kd4 {[%clk 0:01:16.8]} 35... b6 {[%clk 0:00:10.5]}
36. Rf1+ {[%clk 0:01:12.4]} 36... Ke6 {[%clk 0:00:09.1]} 37. b4 {[%clk
0:01:10.3]} 37... Bg7+ {[%clk 0:00:09]} 38. Kd3 {[%clk 0:01:09.4]} 38... a5
{[%clk 0:00:07.4]} 39. b5 {[%clk 0:01:06.7]} 39... Bb7 {[%clk 0:00:06.2]} 40.
Re1+ {[%clk 0:01:03.6]} 40... Kd6 {[%clk 0:00:04.9]} 41. Bc1 {[%clk 0:01:02.7]}
41... Bg2 {[%clk 0:00:03.3]} 42. Bf4+ {[%clk 0:00:59.7]} 42... Kd7 {[%clk
0:00:03]} 43. Be3 {[%clk 0:00:55.1]} 43... Bxh3 {[%clk 0:00:03.1]} 44. Bxb6
{[%clk 0:00:54.6]} 44... Bf5+ {[%clk 0:00:04]} 45. Kd2 {[%clk 0:00:52.6]} 45...
Bh6+ {[%clk 0:00:03.9]} 46. Ke2 {[%clk 0:00:52.4]} 46... Bf4 {[%clk 0:00:02.9]}
47. Bxa5 {[%clk 0:00:49.1]} 47... g5 {[%clk 0:00:03.1]} 48. b6 {[%clk
0:00:48.2]} 48... g4 {[%clk 0:00:04]} 49. b7 {[%clk 0:00:47.4]} 49... g3 {[%clk
0:00:03.1]} 50. c5 {[%clk 0:00:46.8]} 50... g2 {[%clk 0:00:01.9]} 51. Kf2 {[%clk
0:00:44.8]} 1-0

[Event "*** Titled Tuesday Blitz"]
[Site "Chess.com"]
[Date "2020.05.19"]
[Round "9"]
[White "velemajstor767276"]
[Black "2346PL"]
[Result "1-0"]
[WhiteElo "2645"]
[BlackElo "2449"]
[TimeControl "180+1"]
[EndTime "13:47:14 PDT"]
[Termination "velemajstor767276 won by resignation"]

1. d4 {[%clk 0:03:00.9]} 1... f5 {[%clk 0:02:59.8]} 2. e4 {[%clk 0:03:00.3]}
2... fxe4 {[%clk 0:02:59.2]} 3. Nc3 {[%clk 0:03:01]} 3... Nf6 {[%clk 0:02:59.6]}
4. g4 {[%clk 0:03:00.3]} 4... d5 {[%clk 0:02:54.3]} 5. g5 {[%clk 0:02:56.7]}
5... Bg4 {[%clk 0:02:43.8]} 6. Be2 {[%clk 0:02:53.7]} 6... Bxe2 {[%clk
0:02:43.2]} 7. Qxe2 {[%clk 0:02:54.6]} 7... Ng8 {[%clk 0:02:43.1]} 8. f3 {[%clk
0:02:54.2]} 8... Nc6 {[%clk 0:02:41.2]} 9. Be3 {[%clk 0:02:47]} 9... exf3 {[%clk
0:02:23.1]} 10. Nxf3 {[%clk 0:02:45.9]} 10... Qd7 {[%clk 0:02:23.1]} 11. O-O-O
{[%clk 0:02:21.2]} 11... O-O-O {[%clk 0:02:22.4]} 12. Rhe1 {[%clk 0:02:02.2]}
12... e6 {[%clk 0:02:18.8]} 13. Bf4 {[%clk 0:01:57.4]} 13... Bb4 {[%clk
0:02:13.7]} 14. Qxe6 {[%clk 0:01:50.8]} 14... Bxc3 {[%clk 0:02:08.5]} 15. bxc3
{[%clk 0:01:50.2]} 15... Qxe6 {[%clk 0:02:08.6]} 16. Rxe6 {[%clk 0:01:51.1]}
16... Nge7 {[%clk 0:02:05.2]} 17. Ne5 {[%clk 0:01:39.5]} 17... Rhf8 {[%clk
0:02:00.2]} 18. Bg3 {[%clk 0:01:13.2]} 18... g6 {[%clk 0:01:38.5]} 19. Re1
{[%clk 0:01:11.1]} 19... Rf5 {[%clk 0:00:32.9]} 20. Nd3 {[%clk 0:01:10.2]} 20...
Rf7 {[%clk 0:00:30.2]} 21. Ne5 {[%clk 0:00:54.8]} 21... Rf5 {[%clk 0:00:29.8]}
22. h4 {[%clk 0:00:37.9]} 22... Rff8 {[%clk 0:00:29.8]} 23. Ng4 {[%clk
0:00:23.2]} 23... Nf5 {[%clk 0:00:28]} 24. Be5 {[%clk 0:00:20.5]} 24... Nxh4
{[%clk 0:00:26.7]} 25. Rh1 {[%clk 0:00:18.3]} 25... Nf3 {[%clk 0:00:26.1]} 26.
Rxh7 {[%clk 0:00:16.6]} 26... Nxg5 {[%clk 0:00:26.2]} 27. Rxc7+ {[%clk
0:00:14.6]} 27... Kb8 {[%clk 0:00:26.6]} 28. Rcxc6+ {[%clk 0:00:13.6]} 28... Ka8
{[%clk 0:00:27]} 29. Rxg6 {[%clk 0:00:12.5]} 29... bxc6 {[%clk 0:00:19.6]} 30.
Rxg5 {[%clk 0:00:12.8]} 30... Rd7 {[%clk 0:00:18.4]} 31. Rg6 {[%clk 0:00:12.5]}
31... Kb7 {[%clk 0:00:17.9]} 32. Nf6 {[%clk 0:00:10.6]} 32... Rdf7 {[%clk
0:00:17.6]} 33. Ng4 {[%clk 0:00:10.5]} 33... Rd7 {[%clk 0:00:16.9]} 34. Ne3
{[%clk 0:00:09.7]} 34... Rf2 {[%clk 0:00:15.8]} 35. Kb2 {[%clk 0:00:08]} 35...
Rh7 {[%clk 0:00:15.7]} 36. Ng4 {[%clk 0:00:05.8]} 36... Rg2 {[%clk 0:00:14.5]}
37. Rg8 {[%clk 0:00:03.6]} 37... a5 {[%clk 0:00:13.5]} 38. Nf6 {[%clk
0:00:03.4]} 38... Rxg8 {[%clk 0:00:12.8]} 39. Nxg8 {[%clk 0:00:04.3]} 39... Rh3
{[%clk 0:00:11.3]} 40. Nf6 {[%clk 0:00:04.7]} 40... a4 {[%clk 0:00:11.9]} 41. a3
{[%clk 0:00:05]} 41... Kc8 {[%clk 0:00:11]} 42. Ng4 {[%clk 0:00:04.1]} 42... Rh4
{[%clk 0:00:10.6]} 43. Nf2 {[%clk 0:00:04.1]} 43... Kb7 {[%clk 0:00:10.7]} 44.
Nd3 {[%clk 0:00:04.6]} 44... Kb6 {[%clk 0:00:11.2]} 45. Nc5 {[%clk 0:00:04.7]}
45... Kb5 {[%clk 0:00:11.8]} 46. Nd3 {[%clk 0:00:03.8]} 46... Rh2 {[%clk
0:00:11.2]} 47. Bxh2 {[%clk 0:00:03.5]} 1-0

[Event "*** Titled Tuesday Blitz"]
[Site "Chess.com"]
[Date "2020.05.19"]
[Round "9"]
[White "chessuriel"]
[Black "Parkas"]
[Result "0-1"]
[WhiteElo "2162"]
[BlackElo "2286"]
[TimeControl "180+1"]
[EndTime "13:47:15 PDT"]
[Termination "Parkas won by resignation"]

1. e4 {[%clk 0:03:00.9]} 1... c5 {[%clk 0:02:59.7]} 2. Nf3 {[%clk 0:02:59.6]}
2... Nf6 {[%clk 0:02:58.9]} 3. d4 {[%clk 0:02:59.9]} 3... Nxe4 {[%clk
0:02:58.9]} 4. d5 {[%clk 0:02:56.1]} 4... e6 {[%clk 0:02:55.1]} 5. c4 {[%clk
0:02:54.5]} 5... Qa5+ {[%clk 0:02:48.6]} 6. Nbd2 {[%clk 0:02:52.3]} 6... exd5
{[%clk 0:02:46]} 7. cxd5 {[%clk 0:02:51.2]} 7... d6 {[%clk 0:02:44.9]} 8. Bd3
{[%clk 0:02:48.2]} 8... Nf6 {[%clk 0:02:14.4]} 9. O-O {[%clk 0:02:39.9]} 9...
Nxd5 {[%clk 0:02:14.4]} 10. Nc4 {[%clk 0:02:39.4]} 10... Qc7 {[%clk 0:02:13]}
11. Re1+ {[%clk 0:02:35.6]} 11... Be7 {[%clk 0:02:13]} 12. Bg5 {[%clk
0:02:23.8]} 12... f6 {[%clk 0:02:12.9]} 13. Bc1 {[%clk 0:02:16.2]} 13... Nc6
{[%clk 0:02:07.8]} 14. Nh4 {[%clk 0:02:07.3]} 14... Bd7 {[%clk 0:01:32]} 15.
Qh5+ {[%clk 0:02:05]} 15... Kd8 {[%clk 0:01:29.3]} 16. Qxd5 {[%clk 0:02:04.4]}
16... Ne5 {[%clk 0:01:26.4]} 17. Nxe5 {[%clk 0:02:01.5]} 17... fxe5 {[%clk
0:01:26]} 18. Nf5 {[%clk 0:01:52.4]} 18... Bxf5 {[%clk 0:01:13.2]} 19. Bxf5
{[%clk 0:01:50.8]} 19... g6 {[%clk 0:01:11.7]} 20. Bh3 {[%clk 0:01:44.3]} 20...
Qc6 {[%clk 0:01:02.4]} 21. Qxc6 {[%clk 0:01:41.1]} 21... bxc6 {[%clk 0:01:02.3]}
22. Bd2 {[%clk 0:01:40.4]} 22... Rf8 {[%clk 0:00:59.5]} 23. Bc3 {[%clk
0:01:39.7]} 23... Kc7 {[%clk 0:00:58.4]} 24. Rad1 {[%clk 0:01:38.7]} 24... a5
{[%clk 0:00:38.8]} 25. Bxe5 {[%clk 0:01:35]} 25... dxe5 {[%clk 0:00:36.3]} 26.
Rd7+ {[%clk 0:01:34.2]} 26... Kb6 {[%clk 0:00:36.8]} 27. Rxe7 {[%clk 0:01:34]}
27... Rad8 {[%clk 0:00:36.8]} 28. R7xe5 {[%clk 0:01:32.5]} 28... Rd2 {[%clk
0:00:36.8]} 29. R5e2 {[%clk 0:01:31.7]} 29... Rfd8 {[%clk 0:00:37]} 30. Rxd2
{[%clk 0:01:31]} 30... Rxd2 {[%clk 0:00:37.9]} 31. Rb1 {[%clk 0:01:30.5]} 31...
c4 {[%clk 0:00:36.2]} 32. Kf1 {[%clk 0:01:29.8]} 32... Kc5 {[%clk 0:00:36.2]}
33. Ke1 {[%clk 0:01:29.8]} 33... Rc2 {[%clk 0:00:35.1]} 34. g3 {[%clk
0:01:28.3]} 34... a4 {[%clk 0:00:30.4]} 35. Bg2 {[%clk 0:01:27.8]} 35... c3
{[%clk 0:00:29.2]} 36. bxc3 {[%clk 0:01:23.5]} 36... Rxa2 {[%clk 0:00:29.5]} 37.
Bf1 {[%clk 0:01:12]} 37... a3 {[%clk 0:00:27.2]} 38. Bd3 {[%clk 0:01:06.6]}
38... Kd5 {[%clk 0:00:25.7]} 39. h4 {[%clk 0:01:01.2]} 39... c5 {[%clk
0:00:25.8]} 40. Rd1 {[%clk 0:00:57.1]} 40... Kc6 {[%clk 0:00:19.6]} 41. Bc4
{[%clk 0:00:52.6]} 41... Rc2 {[%clk 0:00:19.1]} 42. Ra1 {[%clk 0:00:45.4]} 42...
Rxc3 {[%clk 0:00:19.1]} 43. Bg8 {[%clk 0:00:45.1]} 43... h6 {[%clk 0:00:18.4]}
44. Bf7 {[%clk 0:00:44.3]} 44... g5 {[%clk 0:00:18.2]} 45. hxg5 {[%clk
0:00:41.5]} 45... hxg5 {[%clk 0:00:19.1]} 46. Kf1 {[%clk 0:00:41.2]} 46... Kb5
{[%clk 0:00:19.3]} 47. Kg2 {[%clk 0:00:40.7]} 47... c4 {[%clk 0:00:13.8]} 48. f4
{[%clk 0:00:40.2]} 48... gxf4 {[%clk 0:00:13.7]} 49. gxf4 {[%clk 0:00:39.8]}
49... Kb4 {[%clk 0:00:14.1]} 50. f5 {[%clk 0:00:37.8]} 50... Rd3 {[%clk
0:00:12.2]} 51. Be6 {[%clk 0:00:36.7]} 51... Rd6 {[%clk 0:00:11.6]} 52. Bc8
{[%clk 0:00:31.1]} 52... c3 {[%clk 0:00:11.6]} 53. Kf3 {[%clk 0:00:30.2]} 53...
c2 {[%clk 0:00:11.3]} 54. Be6 {[%clk 0:00:27.9]} 54... Rd1 {[%clk 0:00:10.5]}
55. f6 {[%clk 0:00:24.5]} 55... Rxa1 {[%clk 0:00:10.1]} 0-1

[Event "*** Titled Tuesday Blitz"]
[Site "Chess.com"]
[Date "2020.05.19"]
[Round "9"]
[White "agrigo3"]
[Black "yuki_chess123"]
[Result "1-0"]
[WhiteElo "2267"]
[BlackElo "2143"]
[TimeControl "180+1"]
[EndTime "13:47:15 PDT"]
[Termination "agrigo3 won on time"]

1. Nf3 {[%clk 0:03:00.9]} 1... g6 {[%clk 0:02:59.5]} 2. g3 {[%clk 0:02:57.5]}
2... Bg7 {[%clk 0:02:59.9]} 3. Bg2 {[%clk 0:02:58.1]} 3... d5 {[%clk 0:03:00.5]}
4. O-O {[%clk 0:02:58.3]} 4... c6 {[%clk 0:03:01.1]} 5. d3 {[%clk 0:02:58.6]}
5... Nf6 {[%clk 0:03:01.7]} 6. Nbd2 {[%clk 0:02:58]} 6... O-O {[%clk 0:03:02.3]}
7. e4 {[%clk 0:02:58.1]} 7... Bg4 {[%clk 0:03:01.7]} 8. h3 {[%clk 0:02:57]} 8...
Bxf3 {[%clk 0:03:01.7]} 9. Bxf3 {[%clk 0:02:56.8]} 9... Nbd7 {[%clk 0:02:53.8]}
10. Bg2 {[%clk 0:02:55.1]} 10... e5 {[%clk 0:02:49.9]} 11. Qe2 {[%clk
0:02:53.4]} 11... Re8 {[%clk 0:02:48.9]} 12. b3 {[%clk 0:02:47]} 12... a5 {[%clk
0:02:47.7]} 13. Bb2 {[%clk 0:02:47.1]} 13... a4 {[%clk 0:02:47.3]} 14. Rab1
{[%clk 0:02:35.9]} 14... axb3 {[%clk 0:02:43.5]} 15. axb3 {[%clk 0:02:35]} 15...
Ra2 {[%clk 0:02:43.3]} 16. Rfc1 {[%clk 0:02:19.1]} 16... Qb6 {[%clk 0:02:24.3]}
17. Nf1 {[%clk 0:02:13.8]} 17... d4 {[%clk 0:02:21.4]} 18. f4 {[%clk 0:02:00]}
18... Bh6 {[%clk 0:02:14.9]} 19. Qf2 {[%clk 0:01:47.9]} 19... c5 {[%clk
0:02:11.9]} 20. Re1 {[%clk 0:01:46.1]} 20... exf4 {[%clk 0:01:32]} 21. gxf4
{[%clk 0:01:44.5]} 21... Nh5 {[%clk 0:01:32.5]} 22. Bc1 {[%clk 0:01:39.2]} 22...
Qc7 {[%clk 0:01:14.6]} 23. e5 {[%clk 0:01:36]} 23... Nb6 {[%clk 0:00:44.2]} 24.
Nh2 {[%clk 0:01:32.4]} 24... f5 {[%clk 0:00:40.1]} 25. exf6 {[%clk 0:01:15.1]}
25... Rxe1+ {[%clk 0:00:27.4]} 26. Qxe1 {[%clk 0:01:14.9]} 26... Nxf6 {[%clk
0:00:27.9]} 27. Qe5 {[%clk 0:01:00.4]} 27... Qxe5 {[%clk 0:00:19.7]} 28. fxe5
{[%clk 0:01:00.5]} 28... Bxc1 {[%clk 0:00:19.4]} 29. Rxc1 {[%clk 0:01:00]} 29...
Nfd5 {[%clk 0:00:19.6]} 30. Ng4 {[%clk 0:00:54.3]} 30... Kf7 {[%clk 0:00:19]}
31. Nf6 {[%clk 0:00:51.3]} 31... Ke6 {[%clk 0:00:17.1]} 32. Nxh7 {[%clk
0:00:49.2]} 32... Nb4 {[%clk 0:00:15.4]} 33. Nf8+ {[%clk 0:00:47.7]} 33... Kxe5
{[%clk 0:00:13.3]} 34. Nxg6+ {[%clk 0:00:47.1]} 34... Kd6 {[%clk 0:00:13.8]} 35.
Be4 {[%clk 0:00:39.4]} 35... Nxc2 {[%clk 0:00:13.5]} 36. Rf1 {[%clk 0:00:35.6]}
36... Ne3 {[%clk 0:00:13.3]} 37. Rf2 {[%clk 0:00:35.7]} 37... Ra1+ {[%clk
0:00:12.8]} 38. Kh2 {[%clk 0:00:35.5]} 38... Nd7 {[%clk 0:00:12.3]} 39. Bxb7
{[%clk 0:00:24.4]} 39... Rb1 {[%clk 0:00:11]} 40. Be4 {[%clk 0:00:22]} 40...
Rxb3 {[%clk 0:00:10.2]} 41. Kg3 {[%clk 0:00:20.4]} 41... c4 {[%clk 0:00:09.9]}
42. h4 {[%clk 0:00:16.9]} 42... c3 {[%clk 0:00:09.5]} 43. h5 {[%clk 0:00:16.4]}
43... c2 {[%clk 0:00:09.3]} 44. Rxc2 {[%clk 0:00:15.5]} 44... Nxc2 {[%clk
0:00:09]} 45. h6 {[%clk 0:00:16.2]} 45... Nf6 {[%clk 0:00:09.2]} 46. Kf4 {[%clk
0:00:16.4]} 46... Ne3 {[%clk 0:00:06.8]} 47. Kg5 {[%clk 0:00:14.2]} 47... Nh7+
{[%clk 0:00:01]} 48. Kf4 {[%clk 0:00:13.6]} 1-0

[Event "*** Titled Tuesday Blitz"]
[Site "Chess.com"]
[Date "2020.05.19"]
[Round "9"]
[White "IAgrest"]
[Black "mortngabriel"]
[Result "0-1"]
[WhiteElo "2266"]
[BlackElo "2455"]
[TimeControl "180+1"]
[EndTime "13:47:16 PDT"]
[Termination "mortngabriel won on time"]

1. e4 {[%clk 0:03:00.9]} 1... c5 {[%clk 0:02:59.4]} 2. Nf3 {[%clk 0:03:00.3]}
2... Nc6 {[%clk 0:02:59.9]} 3. d4 {[%clk 0:03:00.5]} 3... cxd4 {[%clk
0:03:00.8]} 4. Nxd4 {[%clk 0:03:01]} 4... g6 {[%clk 0:03:01.6]} 5. Nc3 {[%clk
0:03:00.4]} 5... Bg7 {[%clk 0:03:02.1]} 6. Be3 {[%clk 0:03:01]} 6... Nf6 {[%clk
0:03:02.1]} 7. Bc4 {[%clk 0:03:00.6]} 7... O-O {[%clk 0:03:02.3]} 8. Bb3 {[%clk
0:02:58.7]} 8... d6 {[%clk 0:03:02.6]} 9. h3 {[%clk 0:02:55.3]} 9... Bd7 {[%clk
0:03:02.4]} 10. O-O {[%clk 0:02:46.7]} 10... Rc8 {[%clk 0:03:01.9]} 11. f4
{[%clk 0:02:38.7]} 11... a6 {[%clk 0:02:50.1]} 12. Nxc6 {[%clk 0:01:58.2]} 12...
Bxc6 {[%clk 0:02:49.2]} 13. Qd3 {[%clk 0:01:57.9]} 13... b5 {[%clk 0:02:42.3]}
14. a3 {[%clk 0:01:57]} 14... a5 {[%clk 0:02:38.9]} 15. Rae1 {[%clk 0:01:48.5]}
15... b4 {[%clk 0:02:33.8]} 16. axb4 {[%clk 0:01:47.8]} 16... axb4 {[%clk
0:02:34.7]} 17. Nd5 {[%clk 0:01:47.5]} 17... Bxd5 {[%clk 0:02:20.3]} 18. exd5
{[%clk 0:01:45.4]} 18... Nd7 {[%clk 0:02:08.4]} 19. Bd4 {[%clk 0:01:38.4]} 19...
Nc5 {[%clk 0:02:07.7]} 20. Bxc5 {[%clk 0:01:34.3]} 20... Rxc5 {[%clk 0:02:02.3]}
21. Qe4 {[%clk 0:01:30.5]} 21... Qb6 {[%clk 0:01:50.1]} 22. Kh1 {[%clk 0:01:26]}
22... Rc7 {[%clk 0:01:49.6]} 23. Rb1 {[%clk 0:01:06.1]} 23... Ra8 {[%clk
0:01:44.6]} 24. Bc4 {[%clk 0:00:58.5]} 24... Qc5 {[%clk 0:01:35.1]} 25. b3
{[%clk 0:00:57.6]} 25... Ra2 {[%clk 0:01:29.7]} 26. Rbe1 {[%clk 0:00:51.4]}
26... Bf6 {[%clk 0:01:26]} 27. Re2 {[%clk 0:00:49.6]} 27... Rca7 {[%clk
0:01:24.6]} 28. Ree1 {[%clk 0:00:37.5]} 28... Kg7 {[%clk 0:01:24]} 29. Rd1
{[%clk 0:00:26.3]} 29... Rb2 {[%clk 0:01:21.4]} 30. Rde1 {[%clk 0:00:23.2]}
30... Raa2 {[%clk 0:01:20.3]} 31. Re2 {[%clk 0:00:22.3]} 31... Ra3 {[%clk
0:01:20.2]} 32. Rfe1 {[%clk 0:00:20]} 32... Rba2 {[%clk 0:01:17.9]} 33. Qf3
{[%clk 0:00:18.5]} 33... Ra1 {[%clk 0:01:10.3]} 34. Kh2 {[%clk 0:00:17.7]} 34...
Rxe1 {[%clk 0:01:05.1]} 35. Rxe1 {[%clk 0:00:18.6]} 35... h5 {[%clk 0:00:55.4]}
36. Qe2 {[%clk 0:00:16.6]} 36... h4 {[%clk 0:00:49.7]} 37. Qf3 {[%clk
0:00:16.1]} 37... Ra2 {[%clk 0:00:45.5]} 38. Bd3 {[%clk 0:00:14.3]} 38... Qc3
{[%clk 0:00:39.8]} 39. Rf1 {[%clk 0:00:13.9]} 39... Qd4 {[%clk 0:00:36.3]} 40.
Kh1 {[%clk 0:00:12.1]} 40... Qc5 {[%clk 0:00:34.8]} 41. f5 {[%clk 0:00:11.1]}
41... g5 {[%clk 0:00:31.3]} 42. Be4 {[%clk 0:00:09.3]} 42... Qd4 {[%clk
0:00:28.6]} 43. Bd3 {[%clk 0:00:08.8]} 43... Ra1 {[%clk 0:00:25.8]} 44. Rxa1
{[%clk 0:00:05.8]} 44... Qxa1+ {[%clk 0:00:26.7]} 45. Qf1 {[%clk 0:00:06.2]}
45... Qe5 {[%clk 0:00:26.4]} 46. Qf3 {[%clk 0:00:06.1]} 46... Qd4 {[%clk
0:00:22.1]} 47. Qf1 {[%clk 0:00:03.9]} 47... Be5 {[%clk 0:00:21.4]} 48. Qf3
{[%clk 0:00:03.5]} 48... Kf6 {[%clk 0:00:20.4]} 49. Be4 {[%clk 0:00:02.8]} 49...
Qa1+ {[%clk 0:00:19.3]} 0-1

[Event "*** Titled Tuesday Blitz"]
[Site "Chess.com"]
[Date "2020.05.19"]
[Round "9"]
[White "Azoulas1"]
[Black "top_bu_tz"]
[Result "0-1"]
[WhiteElo "1962"]
[BlackElo "2221"]
[TimeControl "180+1"]
[EndTime "13:47:16 PDT"]
[Termination "top_bu_tz won on time"]

1. e4 {[%clk 0:03:00.9]} 1... e5 {[%clk 0:02:13.1]} 2. Nf3 {[%clk 0:03:00.2]}
2... Nc6 {[%clk 0:02:10.4]} 3. Bb5 {[%clk 0:03:00.4]} 3... Nf6 {[%clk
0:02:04.5]} 4. O-O {[%clk 0:02:58.9]} 4... Nxe4 {[%clk 0:02:02.4]} 5. d4 {[%clk
0:02:58.3]} 5... Nd6 {[%clk 0:02:02.6]} 6. Bxc6 {[%clk 0:02:53.6]} 6... dxc6
{[%clk 0:02:03.5]} 7. Nxe5 {[%clk 0:02:52.6]} 7... Be7 {[%clk 0:02:01.3]} 8. Re1
{[%clk 0:02:51.7]} 8... O-O {[%clk 0:01:59.8]} 9. Nc3 {[%clk 0:02:48.8]} 9...
Nf5 {[%clk 0:01:55.2]} 10. Be3 {[%clk 0:02:45.8]} 10... Bf6 {[%clk 0:01:53.4]}
11. Nf3 {[%clk 0:02:44]} 11... Nxe3 {[%clk 0:01:46.2]} 12. Rxe3 {[%clk
0:02:41.8]} 12... Bf5 {[%clk 0:01:42.4]} 13. h3 {[%clk 0:02:39.3]} 13... Qd7
{[%clk 0:01:40.8]} 14. Ne4 {[%clk 0:02:36.1]} 14... Bxe4 {[%clk 0:01:24.1]} 15.
Rxe4 {[%clk 0:02:34.7]} 15... Rfe8 {[%clk 0:01:25]} 16. Rxe8+ {[%clk 0:02:29.4]}
16... Rxe8 {[%clk 0:01:19.6]} 17. Qd2 {[%clk 0:02:29]} 17... Re4 {[%clk
0:01:16]} 18. Re1 {[%clk 0:02:23.3]} 18... Qe6 {[%clk 0:01:14.8]} 19. c3 {[%clk
0:02:17.1]} 19... g6 {[%clk 0:01:09.7]} 20. Rxe4 {[%clk 0:01:56.5]} 20... Qxe4
{[%clk 0:01:10.6]} 21. Qd1 {[%clk 0:01:53.6]} 21... Qe6 {[%clk 0:01:04.1]} 22.
Qa4 {[%clk 0:01:50.2]} 22... a6 {[%clk 0:01:01]} 23. c4 {[%clk 0:01:42.3]} 23...
Qe2 {[%clk 0:01:00.5]} 24. b3 {[%clk 0:01:34.1]} 24... Be7 {[%clk 0:00:54.5]}
25. d5 {[%clk 0:01:32.2]} 25... Bd6 {[%clk 0:00:54.1]} 26. b4 {[%clk 0:00:55.2]}
26... Qxc4 {[%clk 0:00:50.2]} 27. g3 {[%clk 0:00:48]} 27... Qxd5 {[%clk
0:00:47.5]} 28. Kg2 {[%clk 0:00:46.9]} 28... Qc4 {[%clk 0:00:41]} 29. a3 {[%clk
0:00:45.9]} 29... Qb5 {[%clk 0:00:39.8]} 30. Qb3 {[%clk 0:00:43.9]} 30... Qd5
{[%clk 0:00:39.6]} 31. Qe3 {[%clk 0:00:40.8]} 31... Qe6 {[%clk 0:00:35]} 32. Qc3
{[%clk 0:00:36.2]} 32... Be7 {[%clk 0:00:30.3]} 33. h4 {[%clk 0:00:34.6]} 33...
Bf6 {[%clk 0:00:30.3]} 34. Qd3 {[%clk 0:00:31.9]} 34... Qd5 {[%clk 0:00:29.1]}
35. Qe3 {[%clk 0:00:29.8]} 35... Kg7 {[%clk 0:00:28.2]} 36. Kh2 {[%clk
0:00:24.6]} 36... b6 {[%clk 0:00:13.7]} 37. Kg2 {[%clk 0:00:20.6]} 37... c5
{[%clk 0:00:13.4]} 38. bxc5 {[%clk 0:00:19.7]} 38... bxc5 {[%clk 0:00:12.8]} 39.
Qe8 {[%clk 0:00:15.4]} 39... c4 {[%clk 0:00:11.5]} 40. Qc8 {[%clk 0:00:07.4]}
40... Qc6 {[%clk 0:00:08.4]} 41. Qg4 {[%clk 0:00:05.8]} 41... c3 {[%clk
0:00:08.4]} 42. h5 {[%clk 0:00:05.4]} 42... c2 {[%clk 0:00:08.4]} 43. h6+ {[%clk
0:00:05.3]} 43... Kxh6 {[%clk 0:00:07.4]} 44. Qf4+ {[%clk 0:00:03]} 44... Kg7
{[%clk 0:00:07.2]} 0-1